Cogmind - Beta 14 @@@ ROGUE MODE // 2025.03.15 @ 16:35:45 Player: GiggleBox Result: Destroyed by G-47 Trooper with Particle Gun Performance ------------- Evolutions (2) 1000 Regions Visited (3) 600 Robots Destroyed (47) 235 Value Destroyed (867) 867 Prototype IDs (1) 20 Alien Tech Used (0) 0 Bonus (0) 0 TOTAL SCORE: 2722 Bonus ------- None Cogmind --------- Core Integrity 0/550 Matter 212/300 Energy 22/265 System Corruption 0% Temperature Cool (9) Movement Rolling (110) Ox2 Location -8/Materials Parts ------- > --- POWER (1) -------- Improved Ion Engine > --- PROPULSION (4) --- Wheel > --- UTILITY (4) ------ Small Storage Unit Light Armor Plating > --- WEAPON (2) ------- Pulse Rifle Pulse Rifle > --- INVENTORY (8) ---- Pulse Rifle Advanced Beam Cannon Peak State ------------ > --- POWER ------------ Improved Ion Engine > --- PROPULSION ------- Wheel Wheel > --- UTILITY ---------- Small Storage Unit Weight Redist. System Salvage Targeting Computer Propulsion Shielding > --- WEAPON ----------- Pulse Rifle Maul > --- INVENTORY -------- Pulse Rifle Pulse Rifle Advanced Beam Cannon Grenade Launcher [Rating: 16] Favorites ----------- Power Light Ion Engine Engine Light Ion Engine Propulsion Wheel Wheel Wheel Hover Unit Hover Unit Utility Small Storage Unit Device Seismic Detector Storage Small Storage Unit Processor Improved Targeting Computer Protection Propulsion Shielding Weapon Maul Energy Gun Pulse Rifle Energy Cannon Advanced Beam Cannon Ballistic Gun Assault Rifle Ballistic Cannon Light Cannon Launcher Grenade Launcher Special Weapon Mining Laser Impact Weapon Maul Slashing Weapon Mining Claw Build | -11 -10 -9 -8 ------- Run | Yrd Mat Mat Mat Slots Evolved 4 | . . 2 2 Power . | . . . . Propulsion 2 | . . . 2 Utility 2 | . . 2 . Weapon . | . . . . Parts Attached 48 | 9 13 20 6 Power 6 | 1 1 3 1 Engine 6 | 1 1 3 1 Core . | . . . . Reactor . | . . . . Propulsion 11 | 3 3 5 . Treads . | . . . . Leg . | . . . . Wheel 8 | 3 3 2 . Hover 3 | . . 3 . Flight . | . . . . Utility 14 | 2 1 9 2 Device 8 | 1 1 6 . Storage 2 | 1 . 1 . Processor 2 | . . 1 1 Hackware . | . . . . Protection 2 | . . 1 1 Artifact . | . . . . Weapon 17 | 3 8 3 3 Energy Gun 6 | 1 1 2 2 Energy Cannon 1 | . 1 . . Ballistic Gun 3 | 1 2 . . Ballistic Cannon 1 | . 1 . . Launcher 2 | . 1 . 1 Special Weapon 1 | 1 . . . Impact Weapon 2 | . 1 1 . Slashing Weapon 1 | . 1 . . Piercing Weapon . | . . . . Special Melee Weapon . | . . . . Unidentified Prototypes 1 | . 1 . . Parts Lost 15 | . 3 5 7 Power 1 | . 1 . . Propulsion 6 | . 2 3 1 Utility 6 | . . 2 4 Weapon 2 | . . . 2 Highest Loss Streak 5 | . 2 2 5 To Critical Strikes . | . . . . Average Slot Usage (%) 87 | . 99 82 61 Engine 11 | . 14 10 7 Wheel 15 | . 27 6 11 Hover 4 | . . 8 . Device 15 | . 14 16 13 Storage 11 | . 14 11 9 Protection 5 | . . 11 2 Energy Gun 7 | . 8 6 8 Ballistic Gun 1 | . 4 . . Impact Weapon 10 | . 11 11 7 Peak Build Rating 16 | 7 9 16 16 Average Rating 10 | 6 8 12 12 On Entrance 8 | . 7 9 16 Naked Turns . | . . . . Heaviest Build 22 | 11 15 22 21 Greatest Support 32 | 32 32 26 26 Greatest Overweight (x) 3 | . . 3 2 Average Overweight (x) . | . . . . Largest Inventory Capacity 8 | 8 8 8 8 Average Capacity 7 | 7 8 8 8 Most Carried 8 | 5 8 8 7 Average Carried 5 | 2 6 6 5 Final Capacity 8 | 8 8 8 8 Final Carried 8 | 4 8 6 2 Class Distribution -------------------- 100% | Mutant Dominant Class ---------------- Mutant | -10/Materials Mutant | -9/Materials Mutant | -8/Materials Resources | -11 -10 -9 -8 ----------- Run | Yrd Mat Mat Mat Matter Collected 676 | 228 227 184 37 Remotely . | . . . . Salvage Created 1485 | 137 564 660 124 Parts 61 | 8 20 28 5 Haulers Intercepted 3 | . 1 2 . Recyclers Shooed 4 | . 4 . . Parts Field Recycled . | . . . . Retrieved Matter . | . . . . Parts Self-Destructed . | . . . . Prevented . | . . . . Kills | -11 -10 -9 -8 ------- Run | Yrd Mat Mat Mat Combat Hostiles Destroyed 25 | . 12 11 2 Melee 15 | . 7 7 1 Guns 4 | . 2 1 1 AOE 1 | . 1 . . Classes Destroyed 10 | 3 4 2 1 Worker 7 | 1 3 3 . Tunneler 3 | 2 . 1 . Hauler 3 | . 1 2 . Recycler 5 | 1 2 1 1 Watcher 4 | . 2 2 . Swarmer 9 | . 9 . . Grunt 9 | . 3 6 . Duelist 1 | . . 1 . Sentry 5 | . . 4 1 Heavy 1 | . . . 1 Best Kill Streak 5 | 2 5 4 1 Combat Bots Only 4 | . 3 4 1 Max Kills in Single Turn 1 | 1 1 1 1 Gunslinging . | . . . . Exploded 1 | . 1 . . Melee 1 | . 1 1 1 Uniques/NPCs Destroyed . | . . . . Combat | -11 -10 -9 -8 -------- Run | Yrd Mat Mat Mat Hostile Shots Fired 175 | . 79 70 26 Missed 38 | . 17 15 6 Damage Taken 2081 | 4 576 690 811 Core 1015 | . 195 255 565 Absorbed by Shields 48 | . . 48 . Redirected to Shielding 45 | . . 45 . Core Remaining (%) 52 | 100 22 36 . Volleys Fired 74 | 13 34 12 15 Largest 2 | 2 2 1 2 Hottest 140 | 140 140 63 126 Shots Fired 89 | 25 36 12 16 Gun 70 | 19 31 12 8 Cannon 1 | . 1 . . Launcher 10 | . 2 . 8 Special 8 | 6 2 . . Kinetic 15 | 6 9 . . Thermal 45 | 19 6 12 8 Explosive 10 | . 2 . 8 Electromagnetic 19 | . 19 . . Robot Hit Streak 12 | 6 5 5 12 Robot Miss Streak 4 | 2 4 2 . Penetration Max . | . . . . Secondary Targets . | . . . . Shots Hit Robots 108 | 10 48 41 9 Core Hits 41 | 5 20 9 7 Critical Kills 2 | . 1 1 . Critical Parts Destroyed 10 | . 3 7 . Critical Strikes 15 | . 4 11 . Smash 15 | . 4 11 . Melee Attacks 83 | . 40 41 2 Impact 82 | . 39 41 2 Slashing 1 | . 1 . . Piercing . | . . . . Sneak Attacks 13 | . 7 5 1 Combat Hostiles . | . . . . Follow-up Attacks . | . . . . Damage Inflicted 3390 | 120 1350 1486 434 Guns 634 | 87 278 152 117 Cannons . | . . . . Explosions 264 | . 81 . 183 Melee 2459 | . 991 1334 134 Ramming 9 | 9 . . . Kinetic 84 | 21 63 . . Thermal 512 | 90 80 152 190 Explosive 134 | . 24 . 110 Electromagnetic 192 | . 192 . . Impact 2459 | . 991 1334 134 Slashing . | . . . . Piercing . | . . . . Highest Corruption . | . . . . Average Corruption . | . . . . Corruption Purged . | . . . . Corruption Blocked . | . . . . Overload Shots . | . . . . Overflow Damage 855 | . 262 511 82 Projectiles . | . . . . Explosions . | . . . . Melee 855 | . 262 511 82 Knockbacks 11 | . 3 8 . Impact 10 | . 3 7 . Kinetic . | . . . . Secondary 1 | . . 1 . Self-Inflicted Damage 73 | 4 69 . . Shots 2 | . 2 . . Rammed 1 | 1 . . . Targets Rammed 1 | 1 . . . Kicked . | . . . . Crushed . | . . . . Highest Temperature 60 | 60 40 49 42 Average Temperature 18 | 23 12 19 28 Received Heat Transfer 364 | . 18 256 90 Siege Activations . | . . . . Robots Corrupted 14 | . 6 7 1 Combat Hostiles 5 | . 2 3 . Parts Fried 26 | . 8 15 3 Impact Corruptions 37 | . 15 21 1 Robots Melted . | . . . . Combat Hostiles . | . . . . Parts Melted . | . . . . Heat Transferred 1042 | 200 200 333 309 Parts Sabotaged . | . . . . Parts Stolen . | . . . . Parts Stripped . | . . . . Power Chain Reactions 2 | . 2 . . Alert | -11 -10 -9 -8 ------- Run | Yrd Mat Mat Mat Peak Influence 309 | 20 309 255 187 Initial 130 | . 13 130 55 Average 127 | 12 134 155 115 Maximum Alert Level 1 | . 1 1 . Low Security (%) 68 | 100 67 55 100 Level 1 31 | . 32 44 . Level 2 . | . . . . Level 3 . | . . . . Level 4 . | . . . . Level 5 . | . . . . High Security . | . . . . Max Security . | . . . . Squads Dispatched 5 | . 1 3 1 Investigation . | . . . . Extermination . | . . . . Reinforcement 5 | . 1 3 1 Assault . | . . . . Garrison . | . . . . Intercept . | . . . . Searches Triggered . | . . . . Construction Impeded . | . . . . Haulers Reinforced . | . . . . Active Scanning Responses . | . . . . Cargo Convoy Interrupts . | . . . . Stealth | -11 -10 -9 -8 --------- Run | Yrd Mat Mat Mat Distress Signals 6 | . 2 2 2 Communications Jammed . | . . . . Distress Signals . | . . . . Times Spotted 47 | . 23 17 7 Peak Tracking Total 4 | . 3 4 4 Tactical Retreats 4 | . 2 . 2 Traps | -11 -10 -9 -8 ------- Run | Yrd Mat Mat Mat Traps Triggered . | . . . . Indirectly . | . . . . Trap Hack Attempts . | . . . . Triggered . | . . . . Disarmed . | . . . . Reprogrammed . | . . . . Reused . | . . . . Traps Extracted . | . . . . Installed . | . . . . Triggered . | . . . . Machines | -11 -10 -9 -8 ---------- Run | Yrd Mat Mat Mat Machines Disabled 1 | . . . 1 Max in Single Turn 1 | . . . 1 Machines Repaired . | . . . . Machines Dismantled . | . . . . Machines Sabotaged . | . . . . Overloaded Fab Kills . | . . . . Hacking | -11 -10 -9 -8 --------- Run | Yrd Mat Mat Mat Machines Accessed . | . . . . Terminals . | . . . . Fabricators . | . . . . Repair Stations . | . . . . Recycling Units . | . . . . Scanalyzers . | . . . . Garrison Access . | . . . . Total Hacks . | . . . . Successful . | . . . . Failed . | . . . . Catastrophic . | . . . . Database Lockouts . | . . . . Manual . | . . . . Terminals . | . . . . Fabricators . | . . . . Repair Stations . | . . . . Recycling Units . | . . . . Scanalyzers . | . . . . Garrison Access . | . . . . Terminal Hacks . | . . . . Fabricator Hacks . | . . . . Repair Station Hacks . | . . . . Recycling Unit Hacks . | . . . . Scanalyzer . | . . . . Garrison Access Hacks . | . . . . Unauthorized Hacks . | . . . . Terminals . | . . . . Fabricators . | . . . . Repair Stations . | . . . . Recycling Units . | . . . . Scanalyzers . | . . . . Garrison Access . | . . . . Data Cores Recovered . | . . . . Used . | . . . . Hacking Detections . | . . . . Full Trace Events . | . . . . Feedback Events . | . . . . Feedback Blocked . | . . . . Robot Schematics Acquired . | . . . . Robots Built . | . . . . Authchips . | . . . . Time . | . . . . Total Robot Build Rating . | . . . . Part Schematics Acquired . | . . . . Parts Built . | . . . . Authchips . | . . . . Time . | . . . . Total Part Build Rating . | . . . . Parts Repaired . | . . . . Time . | . . . . Parts Recycled . | . . . . Recycled Matter . | . . . . Retrieved Matter . | . . . . Retrieved Components . | . . . . Parts Scanalyzed . | . . . . Part Schematics Acquired . | . . . . Parts Damaged . | . . . . Bothacking | -11 -10 -9 -8 ------------ Run | Yrd Mat Mat Mat Used RIF Installer . | . . . . Robots Hacked . | . . . . Non-combat . | . . . . Combat . | . . . . Robot Hacks Applied . | . . . . Relay Couplers Released . | . . . . Fabnet Peak Effective % . | . . . . Robots Rewired . | . . . . Allies Hacked . | . . . . Hacks Repelled . | . . . . Allies | -11 -10 -9 -8 -------- Run | Yrd Mat Mat Mat Total Allies . | . . . . Largest Group . | . . . . Highest-Rated Group . | . . . . Highest-Rated Ally . | . . . . Total Orders . | . . . . Ally Attacks . | . . . . Total Damage . | . . . . Kills . | . . . . Allies Corrupted . | . . . . Allies Melted . | . . . . Intel | -11 -10 -9 -8 ------- Run | Yrd Mat Mat Mat Robot Analysis Total . | . . . . Derelict Logs Recovered . | . . . . Drone Launches . | . . . . Drone Recoveries . | . . . . Exploration | -11 -10 -9 -8 ------------- Run | Yrd Mat Mat Mat Turns Passed 2131 | 250 753 943 185 Spaces Moved 1518 | 185 588 617 128 Core 6 | 4 . 2 . Treads . | . . . . Legs . | . . . . Wheels 1198 | 181 588 301 128 Hover 314 | . . 314 . Flight . | . . . . Fastest Speed 50 | 50 80 56 80 Average Speed 100 | 96 85 117 89 Slowest Speed 240 | 100 100 240 110 Overloaded Moves . | . . . . Propulsion Burnouts . | . . . . Robots Hopped . | . . . . Cave-ins Triggered . | . . . . Exploration Rate (%) 36 | 8 85 44 10 Regions Visited 3 Branch Regions . Pre-discovered Areas . | . . . . Known Exits Taken . | . . . . Unknown Exits Taken 3 | 1 1 1 . Scrap Searched . | . . . . Spaces Dug 3 | 3 . . . Terrain Destroyed 83 | 3 19 . 61 Melee . | . . . . Projectile 4 | 3 1 . . AOE 79 | . 18 . 61 Terrain Rammed . | . . . . Walls Destroyed . | . . . . Machines Disabled . | . . . . Actions | -11 -10 -9 -8 --------- Run | Yrd Mat Mat Mat Total 1870 | 220 730 741 179 Wait 77 | . 27 23 27 Move 1515 | 184 587 616 128 Hop . | . . . . Pick Up 47 | 12 18 16 1 Fast Attach . | . . . . Attach 28 | 7 3 13 5 Detach 3 | . . 3 . Swap 20 | 2 10 7 1 Drop 22 | 1 11 10 . Fire 74 | 13 34 12 15 Melee 83 | . 40 41 2 Ram 1 | 1 . . . Kick . | . . . . Crush . | . . . . Escape Stasis . | . . . . Rewire . | . . . . Trap . | . . . . Miscellaneous . | . . . . Route ------- -11/Scrapyard -10/Materials (discovered 5 exits: [*Mat x3] / [*Min x2]) -9/Materials (discovered 2 exits: [*Mat x2]) -8/Materials (discovered 1 exit: [*Sto]) History --------- Turn | Location | Event 2 | -11/Scrapyard | Met Revision 17 32 | -11/Scrapyard | Discovered new exit (range 15) 251 | -11/Scrapyard | Entered Materials 307 | -10/Materials | Discovered new exit (range 14) 313 | -10/Materials | Build established: Mutant 463 | -10/Materials | Discovered new exit (range 15) 492 | -10/Materials | Core integrity fell below 50% 584 | -10/Materials | Discovered new exit (range 11) 785 | -10/Materials | Discovered new exit (range 16) 951 | -10/Materials | Discovered new exit (range 16) 1004 | -10/Materials | Entered another Materials area 1004 | -9/Materials | Evolved 2 slots: Utility x2 1503 | -9/Materials | Discovered new exit (range 3) 1664 | -9/Materials | Core integrity fell below 50% 1872 | -9/Materials | Discovered new exit (range 4) 1947 | -9/Materials | Entered another Materials area 1947 | -8/Materials | Evolved 2 slots: Propulsion x2 1956 | -8/Materials | Discovered new exit (range 5) 2091 | -8/Materials | Core integrity fell below 50% 2115 | -8/Materials | Core integrity fell below 20% 2132 | -8/Materials | Destroyed by G-47 Trooper with Particle Gun Last Messages --------------- 02088_ Imp. Targeting Computer destroyed. 02088_ Critical hit (Blast). 02094_ Knocked back. 02099_ Imp. Ion Engine blasted off. 02099_ Knocked back. 02100_ Acquired 10 matter. 02103_ Penetrated by Slug. 02103_ Grenade Launcher destroyed. 02104_ The unstable cave ceiling collapses. 02109_ Maul destroyed. 02109_ Critical hit (Blast). 02112_ The unstable cave ceiling collapses. 02114_ Knocked back. 02115_ Acquired 1 matter. 02117_ Acquired 3 matter. 02122_ Critical hit (Burn: +37). 02124_ Knocked back. 02124_ H-61 Shepherd destroyed. 02127_ Acquired 6 matter. 02129_ Critical hit (Burn: +37). Map ----- +----------------------------------------------------+ | ??????????????????????????????????????? | | ??????????????????????????????????????? | | ??????????????????????????????????????? | | ??????????????????????????????????????? | | ???????????#???????????????####+#?????? | | ???????????"??????????????? ?????? | | ??????????? ??????????????? ??????? | | ??????????# #?????????????? ??????? | | ??????????# #??????????????# #??????? | | ??????????# #??????????????# #??????? | | ??????????# #??????????????# #??????? | | ??????????# #??????????????# #??????? | | ??????????# #????########### #??????? | | ??????????# #????# ## #??????? | | ??????????#%#????# ## ##?????? | | ??????????#%###### / # #?????? | | ??????????# % + # #?????? | | ???????#??#*###### !] + +?????? | | ????#### ?# #????# !!] # #?????? | | ??###;;;;## #????# !]] # #?????? | | ??#! !;# #????# ### ###?????? | | ?## ;; ###??# #?# #???????? | | ?#; ; ; ##?##########?# #???????? | | ?#; ; ##???????????# #???????? | | ?#; #???????????# #???????? | | ?#; @##???????????# ####????? | | ?#;;;;; #?????####### ###### | | ?###; g % | | ???#; g % % # | | ???###;; ########"##### ###### | | ?????### ##????????????######????? | | ???????# ???????????????????????? | | ???????########???????????????????????? | | | | | | | | | | | | | | | | | | | | | | | | | | | | | | | | | | | +----------------------------------------------------+ Best States ------------- Heat Dissipation 53 Energy Generation 12 Energy Capacity 265 Matter Stores 300 Matter Capacity 300 Sight Range 16 Terrain Scan Density 10 Additional Mass Support 6 Propulsion Shielding 33 Evasion (%) 53 Targeting Accuracy 6 Item Schematics ----------------- None Robot Schematics ------------------ None Fabricated ------------ Nothing Alien Tech Used ----------------- None Achievements -------------- None Challenges ------------ None Game ------ Seed TerrabombSuspensionSplitter Manual? 0 Play Time 00:23:56 Cumulative 7.5 hours Start 2025.03.15 @ 16:13:48 End 2025.03.15 @ 16:35:45 Sessions 1 Manual Loads 0 Difficulty Rogue Special Mode None Game No. 10 Rogue 10 Adventurer 0 Explorer 0 Win Type - Total 0 Types 0/0/0/0/0/0/0/0/0 Lore% 5 Gallery% 14 Achievement% 12 Wizard Run 0 Options --------- Layout 0 ASCII 0 Keyboard 0 Movement Numpad Keybinds 0 Fullscreen 1 Font 24/Smallcaps Map View 76x50 Zoom Use 0% Tactical HUD 1 Map Filters NONE Filters NONE Steam 1 RUN: 0f77613d-7c61-4511-9c92-b3d2af33e588